[Event "GER-ch Youth-U14 2022"]
[Site "Willingen"]
[Date "2022.06.07"]
[Round "4.20"]
[White "Sinka, Silas"]
[Black "Mainka, Ingmar"]
[Result "1/2-1/2"]
[ECO "D08"]
[WhiteElo "1386"]
[BlackElo "1427"]
[Annotator "NA RC COMBH"]
[PlyCount "56"]
[EventDate "2022.06.05"]
[EventType "swiss"]
[EventRounds "9"]
[EventCountry "GER"]
[SourceTitle "playchess.com"]
[Source "ChessBase"]
[SourceQuality "1"]
[TimeControl "40/4500+30:900+30"]

1. d4 {[%emt 0:00:00]} d5 {[%emt 0:00:00]} 2. c4 {[%emt 0:00:00]} e5 {[%emt 0:00:00]} 3. dxe5 {[%emt 0:00:00]} d4 {[%emt 0:00:00]} 4. Nf3 {[%emt 0:00:00]} Nc6 {[%emt 0:00:00]} 5. e3 {[%emt 0:00:00]} Bb4+ {[%emt 0:00:00]} 6. Bd2 {[%emt 0:00:00]} dxe3 {[%emt 0:00:00]} 7. fxe3 {[%emt 0:00:00]} Bxd2+ {[%emt 0:00:00]} 8. Nbxd2 {[%emt 0:00:00]} Nge7 {[%emt 0:00:00]} 9. e4 {[%emt 0:00:00]} Ng6 {[%emt 0:00:00]} 10. Be2 {[%emt 0:00:00]} Ngxe5 {[%emt 0:00:00]} 11. Nxe5 {[%emt 0:00:00]} Nxe5 {[%emt 0:00:00]} 12. O-O {[%emt 0:00:00]} Be6 {[%emt 0:00:00]} 13. b3 {[%emt 0:00:00]} O-O {[%emt 0:00:00]} 14. Nf3 {[%emt 0:00:00]} Nxf3+ {[%emt 0:00:00]} 15. Bxf3 {[%emt 0:00:00]} Qg5 {[%emt 0:00:00]} 16. Qe2 {[%emt 0:00:13]} Rad8 {[%emt 0:00:00]} 17. Rad1 {[%emt 0:00:34]} Qe5 {[%emt 0:01:11]} 18. Rd2 {[%emt 0:05:25]} Rd4 {[%emt 0:01:10]} 19. Rfd1 {[%emt 0:00:59]} Rfd8 {[%emt 0:00:40]} 20. Qe3 {[%emt 0:01:13]} c5 {[%emt 0:01:48]} 21. Rxd4 {[%emt 0:00:45]} cxd4 {[%emt 0:02:08]} 22. Qd3 {[%emt 0:01:11]} Qa5 {[%emt 0:01:33]} 23. Qd2 {[%emt 0:01:05]} Qc5 {[%emt 0:00:55]} 24. Qd3 {[%emt 0:00:36]} h6 {[%emt 0:00:36]} 25. Kf1 {[%emt 0:00:34]} Rd7 {[%emt 0:00:46]} 26. Kg1 {[%emt 0:01:24]} Qa5 {[%emt 0:01:45]} 27. Qd2 {[%emt 0:00:21]} Qc3 {[%emt 0:00:43]} 28. Kf2 {[%emt 0:01:53]} Qxd2+ {[%emt 0:01:12]} 1/2-1/2

[Event "GER-ch Youth-U14 2022"]
[Site "Willingen"]
[Date "2022.06.07"]
[Round "4.22"]
[White "Vihan, Shourya"]
[Black "Miller, Elias"]
[Result "1-0"]
[ECO "A01"]
[WhiteElo "1385"]
[BlackElo "1548"]
[Annotator "NA RC COMBH"]
[PlyCount "95"]
[EventDate "2022.06.05"]
[EventType "swiss"]
[EventRounds "9"]
[EventCountry "GER"]
[SourceTitle "playchess.com"]
[Source "ChessBase"]
[SourceQuality "1"]
[TimeControl "40/4500+30:900+30"]

1. b3 {[%emt 0:00:00]} e5 {[%emt 0:00:00]} 2. Bb2 {[%emt 0:00:00]} d6 {[%emt 0:00:00]} 3. e3 {[%emt 0:00:00]} g6 {[%emt 0:00:00]} 4. f4 {[%emt 0:00:00]} Bg7 {[%emt 0:00:00]} 5. Nf3 {[%emt 0:00:00]} Bg4 {[%emt 0:00:00]} 6. h3 {[%emt 0:00:00]} Bxf3 {[%emt 0:13:48]} 7. Qxf3 {[%emt 0:00:00]} Nc6 {[%emt 0:05:18]} 8. Bb5 {[%emt 0:00:00]} Nge7 {[%emt 0:01:08]} 9. Nc3 {[%emt 0:00:00]} O-O {[%emt 0:01:53]} 10. O-O-O {[%emt 0:00:00]} a6 {[%emt 0:02:11]} 11. Bxc6 {[%emt 0:00:00]} bxc6 {[%emt 0:03:15]} 12. h4 {[%emt 0:01:13]} d5 {[%emt 0:04:03]} 13. h5 {[%emt 0:03:10]} d4 {[%emt 0:01:24]} 14. Ne4 {[%emt 0:05:24]} a5 {[%emt 0:16:05]} 15. fxe5 {[%emt 0:06:55]} Bxe5 {[%emt 0:02:36]} 16. Nf6+ {[%emt 0:00:57]} Bxf6 {[%emt 0:02:26]} 17. Qxf6 {[%emt 0:00:27]} Nf5 {[%emt 0:01:26]} 18. Bxd4 {[%emt 0:02:02]} Nxd4 {[%emt 0:00:31]} 19. Qxd4 {[%emt 0:00:15]} Qxd4 {[%emt 0:00:05]} 20. exd4 {[%emt 0:00:05]} Rfd8 {[%emt 0:01:54]} 21. c3 {[%emt 0:00:14]} Rd5 {[%emt 0:01:51]} 22. Rde1 {[%emt 0:01:45]} gxh5 {[%emt 0:02:14]} 23. Re5 {[%emt 0:00:14]} Rxe5 {[%emt 0:00:55]} 24. dxe5 {[%emt 0:00:06]} a4 {[%emt 0:06:52]} 25. b4 {[%emt 0:01:31]} c5 {[%emt 0:02:05]} 26. bxc5 {[%emt 0:00:23]} Ra5 {[%emt 0:00:27]} 27. d4 {[%emt 0:00:10]} c6 {[%emt 0:00:28]} 28. Kc2 {[%emt 0:00:35]} Kf8 {[%emt 0:02:52]} 29. Rxh5 {[%emt 0:00:29]} Ke7 {[%emt 0:00:58]} 30. Rxh7 {[%emt 0:00:14]} Ke6 {[%emt 0:01:17]} 31. Rh6+ {[%emt 0:00:05]} Kd7 {[%emt 0:00:54]} 32. Rd6+ {[%emt 0:01:01]} Ke7 {[%emt 0:01:54]} 33. Rxc6 {[%emt 0:00:05]} a3 {[%emt 0:00:31]} 34. Kb3 {[%emt 0:00:08]} Ra7 {[%emt 0:00:31]} 35. Rb6 {[%emt 0:00:15]} Rc7 {[%emt 0:03:50]} 36. Kxa3 {[%emt 0:00:18]} Kd7 {[%emt 0:00:19]} 37. Kb4 {[%emt 0:00:27]} Ke7 {[%emt 0:01:16]} 38. a4 {[%emt 0:00:06]} Kd7 {[%emt 0:00:58]} 39. a5 {[%emt 0:00:12]} Ra7 {[%emt 0:01:21]} 40. Ka4 {[%emt 0:00:06]} f5 {[%emt 0:00:43]} 41. exf6 {[%emt 0:15:07]} Ke8 {[%emt 0:15:28]} 42. a6 {[%emt 0:00:05]} Kf8 {[%emt 0:00:13]} 43. Rb7 {[%emt 0:00:06]} Ra8 {[%emt 0:00:25]} 44. a7 {[%emt 0:00:02]} Ke8 {[%emt 0:00:34]} 45. Rb8+ {[%emt 0:00:05]} Rxb8 {[%emt 0:00:10]} 46. axb8=Q+ {[%emt 0:00:04]} Kd7 {[%emt 0:00:08]} 47. Qd6+ {[%emt 0:00:12]} Kc8 {[%emt 0:00:29]} 48. Qe7 {[%emt 0:00:04]} 1-0

[Event "GER-ch Youth-U14 2022"]
[Site "Willingen"]
[Date "2022.06.08"]
[Round "5.1"]
[White "Sreyas Payyappat"]
[Black "Ermitsch, Magnus"]
[Result "0-1"]
[ECO "B48"]
[WhiteElo "2169"]
[BlackElo "2222"]
[Annotator "TA"]
[PlyCount "48"]
[EventDate "2022.06.05"]
[EventType "swiss"]
[EventRounds "9"]
[EventCountry "GER"]
[SourceTitle "playchess.com"]
[Source "ChessBase"]
[SourceQuality "1"]
[TimeControl "40/4500+30:900+30"]

{[%evp 11,48,36,38,1,22,-39,7,-33,0,0,33,50,57,53,75,49,66,-62,-72,-84,-18,-69,0,-35,33,-43,-38,-133,-164,-164,-166,-170,-166,-528,-505,-1068,-1058,-1354,-1320]} 1. e4 {[%emt 0:00:00]} c5 {[%emt 0:00:00]} 2. Nf3 {[%emt 0:00:00]} e6 {[%emt 0:00:00]} 3. d4 {[%emt 0:00:00]} cxd4 {[%emt 0:00:00]} 4. Nxd4 {[%emt 0:00:00]} Nc6 {[%emt 0:00:00]} 5. Nc3 {[%emt 0:00:00]} Qc7 {[%emt 0:00:00]} 6. Be3 {[%emt 0:00:00]} a6 {[%emt 0:00:00]} 7. g4 {[%emt 0:00:00][%cal Bg2g4,Bg4g5][%mdl 32] B48: Sicilian: Taimanov: 5 Nc3 Qc7 6 Be3 a6 without Be2.} b5 {[%emt 0:00:00]} 8. Qd2 {[%emt 0:00:00] [#]} (8. Nxc6 $11 Qxc6 9. Bg2) 8... Ne5 $146 {[%emt 0:00:00]} (8... Nxd4 $15 9. Qxd4 Bb7) ({Predecessor:} 8... Nxd4 9. Qxd4 Bb7 10. O-O-O Rc8 11. Bd3 Ne7 12. f4 Nc6 13. Qb6 Qxb6 14. Bxb6 Nb4 {½-½ (40) Van Doorn,J (2237)-Grobshtein,E (2312) ICCF email 2009}) 9. Bf4 {[%emt 0:00:00] The position is equal.} d6 {[%emt 0:27:35]} 10. O-O-O {[%emt 0:13:56][%cal Oc3b5]} Nf6 {[%emt 0:01:16]} 11. g5 {[%emt 0:15:47] Hoping for Bxe5.} Nfd7 {[%emt 0:04:30]} 12. Bg3 {[%emt 0:02:54]} Bb7 {[%emt 0:06:24]} 13. f4 {[%emt 0:08:57]} Nc4 {[%emt 0:01:42]} 14. Qd3 {[%emt 0:10:22]} (14. Bxc4 $14 Qxc4 15. a3) 14... Rc8 $15 {[%emt 0:01:54]} 15. Bg2 {[%emt 0:02:48]} Nc5 {[%emt 0:15:26]} ({Black should play} 15... Be7 $17) 16. Qe2 $11 {[%emt 0:08:02][%cal Oc3b5]} Qa5 {[%emt 0:07:24]} (16... Be7 $15) 17. Be1 {[%emt 0:02:20]} (17. Nb3 $5 {[%cal Rb3a5]} Qc7 18. Nd4 $11) 17... Qb6 {[%emt 0:00:35]} (17... Qb4 18. Nb3 $14) (17... g6 $15 18. Rg1 h6) 18. f5 {[%emt 0:01:11]} (18. b3 $14 Na3 19. Nd5 $1 {[%mdl 512]} exd5 20. exd5+ Be7 21. Bb4) 18... e5 $36 {[%emt 0:01:34][%mdl 2048] Black is pushing.} 19. Nb3 {[%emt 0:01:50] [#]} (19. Nd5 $15 Bxd5 20. exd5) 19... Na4 $1 $17 {[%emt 0:01:01]} 20. Bf2 Qc7 {[%emt 0:02:17]} 21. Nxa4 {[%emt 0:05:31]} bxa4 {[%emt 0:00:10]} 22. Na1 $2 {[%emt 0:01:06]} ({Don't play} 22. Nc5 d5 23. Nd3 (23. Nxa4 d4 $17) 23... d4 $17) (22. Rd3 axb3 23. axb3) 22... Nxb2 $19 {[%emt 0:00:19] Black is clearly winning.} 23. Rde1 {[%emt 0:02:45]} (23. Rd2 $142 Qa5 24. h4) 23... Qc3 {[%emt 0:00:23] Threatens to win with ...Nc4.} 24. Bf1 {[%emt 0:02:14]} Nc4 {[%emt 0:00:21] Weighted Error Value: White=0.85/Black=0.17 (very precise)} 0-1

[Event "GER-ch Youth-U14 2022"]
[Site "Willingen"]
[Date "2022.06.08"]
[Round "5.2"]
[White "Sommer, Justus"]
[Black "Deuer, Marius"]
[Result "0-1"]
[ECO "B13"]
[WhiteElo "1868"]
[BlackElo "2359"]
[Annotator "TA"]
[PlyCount "78"]
[EventDate "2022.06.05"]
[EventType "swiss"]
[EventRounds "9"]
[EventCountry "GER"]
[SourceTitle "playchess.com"]
[Source "ChessBase"]
[SourceQuality "1"]
[TimeControl "40/4500+30:900+30"]

{[%evp 12,77,0,0,0,0,0,0,0,0,19,10,10,27,39,-52,-57,-48,-57,-56,-64,-58,-60,-50,-50,-63,-74,-147,-159,-158,-158,-158,-166,-147,-160,-186,-190,-160,-135,-203,-214,-236,-204,-231,-224,-261,-226,-347,-345,-537,-537,-511,-471,-783,-764,-1110,-837,-29990,-29991,-29992,-29993,-29994,-29995,-29995,-29996,-29996,-29997,-29999]} 1. e4 {[%emt 0:00:00]} c6 {[%emt 0:00:00]} 2. d4 {[%emt 0:00:00]} d5 {[%emt 0:00:00]} 3. exd5 {[%emt 0:00:00]} cxd5 {[%emt 0:00:00]} 4. c4 {[%emt 0:00:00]} Nf6 {[%emt 0:00:00]} 5. Nc3 {[%emt 0:00:00]} Nc6 {[%emt 0:00:00]} 6. Bg5 {[%emt 0:00:00]} dxc4 {[%emt 0:00:00]} 7. Bxc4 {[%emt 0:00:00] 7.Bxc4 is better than 7.d5.} h6 {[%emt 0:00:00] B13: Caro-Kann: Exchange Variation and Panov-Botvinnik Attack.} 8. Bh4 {[%emt 0:00:00]} Qxd4 {[%emt 0:00:00]} 9. Qxd4 {[%emt 0:00:00]} Nxd4 {[%emt 0:00:00] The position is equal.} 10. O-O-O {[%emt 0:00:00] Prevents Nc2.} g5 {[%emt 0:00:00]} (10... e5 $5 {[%cal Rc8g4]}) 11. Rxd4 {[%emt 0:03:00] And now Bg3 would win.} gxh4 {[%emt 0:00:00]} 12. Nb5 {[%emt 0:09:25][%cal Rb5c7]} e5 {[%emt 0:00:00] [#]} 13. Rd2 $146 {[%emt 0:02:30]} (13. Rxh4 $14 Bc5 14. Nf3 (14. Nc7+ Ke7 $11)) ({Predecessor:} 13. Nc7+ Ke7 14. Rxh4 Rb8 15. Nf3 e4 16. Ne5 Bg7 17. Rd1 Bf5 18. Rf4 Rhc8 19. Rxf5 Rxc7 20. Kb1 Rf8 21. Ng6+ {1-0 (21) Yan,T (2240)-Girya,O (2488) China 2019}) 13... Bb4 $15 {[%emt 0:06:35]} ({But not} 13... Rb8 14. Nf3 $11) 14. Nc7+ {[%emt 0:11:30]} Ke7 {[%emt 0:00:06]} 15. Nxa8 {[%emt 0:01:12]} Bxd2+ {[%emt 0:00:23]} 16. Kxd2 {[%emt 0:00:12]} Bg4 $36 {[%emt 0:00:46][%mdl 2048] Black has some pressure.} 17. h3 {[%emt 0:05:29]} Bh5 {[%emt 0:05:18]} 18. Be2 {[%emt 0:05:34]} Rd8+ {[%emt 0:12:21]} 19. Ke3 {[%emt 0:03:20]} (19. Ke1 $142) 19... Nd5+ $1 $17 {[%emt 0:10:06]} ({And not} 19... Rxa8 20. Bxh5 Nxh5 21. Nf3 $11) 20. Ke4 {[%emt 0:02:09] [#]} Bxe2 {[%emt 0:05:02] Black is more active.} 21. Nxe2 {[%emt 0:00:16][%cal Oh1c1]} Ke6 {[%emt 0:00:08] Hoping for ...f5+.} 22. g4 {[%emt 0:10:52][%cal Of2f4] Against f5+} hxg3 $1 {[%emt 0:02:06]} ({Worse is} 22... Rxa8 23. f4 Nf6+ 24. Ke3 $15) 23. fxg3 {[%emt 0:00:39]} Rxa8 {[%emt 0:09:36][%mdl 4096] Endgame KRN-KRN} 24. g4 {[%emt 0:10:49]} Rc8 {[%emt 0:12:17]} 25. Rc1 {[%emt 0:01:57] Against Rc2} (25. Re1 $17) 25... Rxc1 $19 {[%emt 0:05:03]} 26. Nxc1 {[%emt 0:00:07] KN-KN} Nf4 {[%emt 0:00:04]} 27. h4 {[%emt 0:00:45] [#]} b6 $1 {[%emt 0:00:36]} 28. a4 {[%emt 0:02:52]} f6 {[%emt 0:07:12] White must now prevent ...h5.} 29. Na2 {[%emt 0:02:06]} (29. h5 $142) 29... h5 {[%emt 0:00:59]} 30. Kf3 {[%emt 0:02:28]} (30. gxh5 $142 f5+ 31. Kf3) 30... hxg4+ {[%emt 0:00:16]} 31. Kxg4 {[%emt 0:00:05]} f5+ {[%emt 0:00:01]} 32. Kg5 {[%emt 0:00:34]} (32. Kg3 $142 Nd5 33. Kh3) 32... Nh3+ {[%emt 0:00:56]} 33. Kg6 {[%emt 0:00:07]} f4 {[%emt 0:01:06] ( -> ...f3)} 34. h5 {[%emt 0:02:13]} f3 {[%emt 0:01:38] Black mates.} 35. h6 {[%emt 0:00:07]} Nf4+ {[%emt 0:01:58]} 36. Kg5 {[%emt 0:00:31]} f2 {[%emt 0:00:20]} 37. h7 {[%emt 0:00:07]} f1=Q {[%emt 0:00:05]} 38. h8=Q {[%emt 0:00:13]} Qg2+ {[%emt 0:00:08]} 39. Kh6 {[%emt 0:00:17]} Qg6# {[%emt 0:00:06] Weighted Error Value: White=0.67/Black=0.02 (flawless)} 0-1

[Event "GER-ch Youth-U14 2022"]
[Site "Willingen"]
[Date "2022.06.08"]
[Round "5.3"]
[White "Hagner, Bennet"]
[Black "Möller, Maurin"]
[Result "1/2-1/2"]
[ECO "B35"]
[WhiteElo "2186"]
[BlackElo "1780"]
[Annotator "TA"]
[PlyCount "141"]
[EventDate "2022.06.05"]
[EventType "swiss"]
[EventRounds "9"]
[EventCountry "GER"]
[SourceTitle "playchess.com"]
[Source "ChessBase"]
[SourceQuality "1"]
[TimeControl "40/4500+30:900+30"]

{[%evp 14,141,23,26,36,28,22,23,25,21,29,29,60,72,106,51,52,-64,-16,-20,-21,-59,-68,-61,-27,-35,-34,-172,-157,-154,-25,-59,-7,-5,0,-5,0,0,0,0,0,0,0,-95,-97,-141,-143,-148,-145,-178,-182,-189,-178,-185,-150,-213,-181,-214,-211,-206,-124,-258,-258,-258,-258,-256,-256,-268,-277,-281,-262,-308,-312,-310,-305,-329,-306,-311,-336,-453,-429,-377,-293,-465,-464,-474,-456,-425,-411,-6597,-6319,-5152,-4780,-5624,-4060,-12833,-12829,-12841,-12730,-12815,-127,-12842,-10835,-12844,-12846,-12828,-12803,-12595,-12587,-8041,-7389,-1561,-1142,-29967,-9584,-29983,-6,-6,0,0,0,0,0,0,0,0,0,0,0,-8]} 1. e4 {[%emt 0:00:00] Krasenkow,Michal} c5 {[%emt 0:00:00]} 2. Nf3 {[%emt 0:00:00]} Nc6 {[%emt 0:00:00]} 3. Nc3 {[%emt 0:00:00]} g6 {[%emt 0:00:00]} 4. d4 {[%emt 0:00:00]} cxd4 {[%emt 0:00:00]} 5. Nxd4 {[%emt 0:00:00]} Bg7 {[%emt 0:00:00]} 6. Be3 {[%emt 0:00:00]} Nf6 {[%emt 0:00:00]} 7. Bc4 {[%emt 0:00:00]} O-O {[%emt 0:00:00]} 8. Bb3 {[%emt 0:00:00]} Re8 {[%emt 0:00:00] B35: Sicilian: Accelerated Dragon with 5 Nc3: main line.} 9. f3 {[%emt 0:00:00]} d5 {[%emt 0:00:00]} 10. exd5 {[%emt 0:04:11]} Nb4 {[%emt 0:00:00][%cal Rb4d5] White has an edge.} 11. Nde2 {[%emt 0:03:37]} e6 {[%emt 0:00:00][%cal Rf6d5]} 12. Qd2 {[%emt 0:10:06] [#]} Nfxd5 $146 {[%emt 0:19:01]} ({Predecessor:} 12... Nbxd5 13. O-O-O Bd7 14. Nxd5 exd5 15. Nc3 a5 16. a4 b5 17. Nxd5 bxa4 18. Bb6 axb3 19. Bxd8 Raxd8 20. Nxf6+ Bxf6 {0-1 (30) Aravindh,C (2601)-Dubov,D (2703) Moscow 2019 CBM 189 [Krasenkow,Michal]}) 13. O-O-O {[%emt 0:03:39]} Qa5 {[%emt 0:10:15]} 14. Nxd5 {[%emt 0:05:04]} (14. Bh6 $1 $16) 14... exd5 $14 {[%emt 0:02:25]} 15. Nc3 {[%emt 0:09:42]} ({White should try} 15. a3 $14) 15... Bf5 {[%emt 0:13:05]} (15... Bxc3 $15 16. bxc3 Nxa2+ 17. Kb2 Qxc3+ $1 18. Qxc3 (18. Kxa2 Rxe3 19. Qxc3 Rxc3 $17) 18... Nxc3) 16. Bd4 $1 $11 {[%emt 0:04:43] [#]} Nd3+ $1 {[%emt 0:06:34]} 17. cxd3 {[%emt 0:05:06]} (17. Kb1 Bxd4) 17... Bxd4 {[%emt 0:00:01]} 18. Nxd5 {[%emt 0:04:18]} Rac8+ {[%emt 0:04:11]} 19. Kb1 {[%emt 0:00:55]} Qb5 {[%emt 0:01:52]} 20. g4 {[%emt 0:22:07]} (20. Rhe1 $15 Qxd3+ 21. Qxd3 Bxd3+ 22. Ka1 Rxe1 23. Rxe1) 20... Be6 $1 $19 {[%emt 0:01:53] This bishop pair is nice.} 21. Bc4 {[%emt 0:01:11]} Qc5 {[%emt 0:05:04]} (21... Qc6 $1 $17 22. Nb4 Qxf3) 22. Nc3 {[%emt 0:01:16]} Bxc4 {[%emt 0:04:25]} ({Black should play} 22... Bxc3 $15 23. Qxc3 Qe3) 23. dxc4 $11 {[%emt 0:00:04]} Bxc3 {[%emt 0:00:34]} 24. Qxc3 {[%emt 0:00:04]} Qxc4 {[%emt 0:00:24]} 25. Qxc4 {[%emt 0:02:18]} Rxc4 $15 {[%emt 0:00:03][%mdl 4096] Endgame KRR-KRR} 26. Rd7 {[%emt 0:00:32]} Rb4 {[%emt 0:01:02]} 27. a3 {[%emt 0:03:53]} Rb5 {[%emt 0:00:38]} 28. Rd2 {[%emt 0:02:01]} (28. Rc1 $11 {keeps the balance.}) 28... Re3 $1 $17 {[%emt 0:00:36][%csl LRa3,LRf3]} 29. Rf1 {[%emt 0:00:27]} Rxa3 $1 {[%emt 0:03:00]} 30. f4 {[%emt 0:01:04]} Ra6 {[%emt 0:00:23]} 31. f5 {[%emt 0:01:00]} gxf5 {[%emt 0:00:47]} 32. gxf5 {[%emt 0:00:03] [#]} Kg7 {[%emt 0:00:11]} 33. Rd3 {[%emt 0:01:21]} Rh6 {[%emt 0:01:55] Against Rh3} 34. h3 {[%emt 0:01:16]} (34. Rf2 $17 {is a better defense.}) 34... Rh5 {[%emt 0:00:40]} 35. f6+ {[%emt 0:00:52]} Kg6 {[%emt 0:00:01]} 36. Rd7 {[%emt 0:00:52]} Rhf5 {[%emt 0:02:41]} ({Worse is} 36... Rxh3 37. Rg1+ Kxf6 38. Rf1+ Ke6 39. Rfxf7 $17) 37. Rg1+ {[%emt 0:01:14]} (37. Rxf5 $17 {was the only chance.} Rxf5 38. Rxb7) 37... Kxf6 $19 {[%emt 0:00:25]} 38. Rd6+ {[%emt 0:00:18]} Ke7 {[%emt 0:01:37]} 39. Rd2 {[%emt 0:00:34]} a5 {[%emt 0:00:27]} 40. Rgd1 {[%emt 0:00:58]} h5 {[%emt 0:01:22]} 41. Ka2 {[%emt 0:00:00]} h4 {[%emt 0:00:00]} 42. Ka3 {[%emt 0:00:00]} b6 {[%emt 0:00:00][%cal Bb7b6,Bb6b5][%mdl 32]} 43. Rd3 {[%emt 0:00:00]} Rf4 {[%emt 0:00:00]} 44. b3 {[%emt 0:00:00]} Rbb4 {[%emt 0:00:00]} 45. Re3+ {[%emt 0:00:00]} Kf6 {[%emt 0:00:00]} 46. Rd6+ {[%emt 0:00:00]} Kg5 {[%emt 0:00:00]} 47. Rd8 {[%emt 0:00:46]} b5 {[%emt 0:00:00]} 48. Ra8 {[%emt 0:02:13]} (48. Rg8+ {was worth a try.} Kf6 49. Rge8) 48... a4 {[%emt 0:00:00]} 49. Rg8+ {[%emt 0:00:08]} Kf5 {[%emt 0:00:00] Threatens to win with ...Rxb3+.} 50. bxa4 {[%emt 0:00:16]} bxa4 {[%emt 0:00:00][%cal Ob4b3] And now ...Rb3+! would win.} 51. Rh8 {[%emt 0:02:27]} (51. Rf8 $142 f6 52. Ra8) 51... Rb3+ {[%emt 0:00:00]} 52. Rxb3 {[%emt 0:00:08]} axb3 {[%emt 0:00:00]} 53. Kxb3 {[%emt 0:00:15] KR-KR} Rf3+ {[%emt 0:00:00]} 54. Kc2 {[%emt 0:00:10]} Rxh3 {[%emt 0:00:00]} 55. Kd2 {[%emt 0:00:06]} Ke4 {[%emt 0:00:00]} 56. Ke2 {[%emt 0:00:22]} f5 $2 {[%emt 0:00:00]} (56... Kf4 $19 {and Black stays clearly on top.} 57. Kf2 Rh2+ 58. Kf1 f5) 57. Ra8 $2 {[%emt 0:04:46][%mdl 8192]} (57. Kf2 $17) 57... Kf4 {[%emt 0:00:52]} 58. Kf2 {[%emt 0:01:16]} Rh2+ {[%emt 0:02:52]} 59. Kg1 {[%emt 0:00:01]} Rb2 {[%emt 0:01:47]} 60. Ra4+ {[%emt 0:00:41]} Kg3 {[%emt 0:00:02][%cal Rb2b1]} 61. Ra3+ {[%emt 0:00:13]} Kg4 {[%emt 0:00:26] Strongly threatening ...Re2.} 62. Ra4+ {[%emt 0:00:21]} f4 {[%emt 0:00:19]} 63. Ra3 {[%emt 0:02:23]} h3 {[%emt 0:00:09]} (63... f3 $142 64. Ra8 Rg2+ 65. Kh1 Re2 66. Rg8+ Kf4 67. Kg1 h3 68. Rf8+ Ke3 69. Kf1 Rc2 70. Re8+ Kd4 71. Rh8 h2 72. Rh7 Rc1+ 73. Kf2 h1=Q 74. Rxh1 Rxh1 75. Kxf3 Rf1+ 76. Kg4 Ke5 77. Kg3 Rf4 78. Kg2 Kf5 79. Kh3 Rf3+ 80. Kh2 Kg4 81. Kg2 Rf7 82. Kh2 Kf3 83. Kg1 Kg3 84. Kh1 Rf1#) 64. Rc3 {[%emt 0:03:09]} h2+ $2 {[%emt 0:00:13]} (64... f3 {mates} 65. Rc8 h2+ 66. Kh1 Rb1+ 67. Kxh2 f2 68. Rc4+ Kf3 69. Rc3+ Ke2 70. Rc8 f1=Q 71. Re8+ Kd2 72. Rd8+ Ke1 73. Re8+ {[#]} Qe2+ $3 {[%mdl 512]} 74. Rxe2+ Kxe2 75. Kg3 Rb4 76. Kg2 Rb3 77. Kh1 Kf2 78. Kh2 Kf1 79. Kh1 Rh3#) 65. Kh1 $11 {[%emt 0:00:06] The position is equal.} f3 {[%emt 0:00:10]} (65... Re2 $5 {[%cal Rf4f3]} 66. Rg3+ Kf5 $17) 66. Rc2 $1 {[%emt 0:05:07]} Rb5 {[%emt 0:02:28] ( -> ...Kg3)} 67. Kxh2 {[%emt 0:00:17]} Rh5+ {[%emt 0:00:04]} 68. Kg1 {[%emt 0:00:04]} Kg3 {[%emt 0:00:06]} 69. Rg2+ {[%emt 0:00:23]} Kf4 {[%emt 0:00:30]} 70. Rg8 {[%emt 0:00:47]} Re5 {[%emt 0:00:21]} 71. Kf2 {[%emt 0:00:20] Whites escaped into a draw.  Weighted Error Value: White=0.77/Black=0.38} 1/2-1/2